fUST/lending_fUST_20260226
["ID","MTS","AMOUNT","RATE_DAILY","PERIOD"]
[406722224,1772120734416,-500.0,9.899e-05,2]
[406722225,1772120734440,-500.0,9.899e-05,2]
[406722226,1772120734465,-500.0,9.899e-05,2]
[406722227,1772120734490,-530.59046225,9.899e-05,2]
[406722228,1772120734514,-500.0,9.899e-05,2]
[406722229,1772120734538,-599.39558375,9.899e-05,2]
[406722230,1772120734564,-599.39558375,9.899e-05,2]
[406722231,1772120734588,-599.39558375,9.899e-05,2]
[406722232,1772120734615,-599.39558375,9.899e-05,2]
[406722233,1772120734662,-599.39558375,9.899e-05,2]
[406722234,1772120734709,-599.39558375,9.899e-05,2]
[406722235,1772120734739,-599.39558375,9.899e-05,2]
[406722236,1772120734771,-599.39558375,9.899e-05,2]
[406722237,1772120734797,-599.39558375,9.899e-05,2]
[406722238,1772120734825,-599.39558375,9.899e-05,2]
[406722239,1772120734854,-599.39558375,9.899e-05,2]
[406722240,1772120734886,-599.39558375,9.899e-05,2]
[406722241,1772120734914,-599.39558375,9.899e-05,2]
[406722242,1772120734939,-599.39558375,9.899e-05,2]
[406722243,1772120734963,-599.39558375,9.899e-05,2]
[406722244,1772120734987,-599.39558375,9.899e-05,2]
[406722245,1772120735011,-599.39558375,9.899e-05,2]
[406722246,1772120735037,-599.39558375,9.899e-05,2]
[406722247,1772120735066,-599.39558375,9.899e-05,2]
[406722248,1772120735097,-599.39558375,9.899e-05,2]
[406722249,1772120735121,-776.38347726,9.899e-05,2]
[406722250,1772120735145,-776.38347726,9.899e-05,2]
[406722251,1772120735169,-776.38347726,9.899e-05,2]
[406722252,1772120735194,-776.38347726,9.899e-05,2]
[406722253,1772120735218,-776.38347726,9.899e-05,2]
[406722254,1772120735243,-776.38347726,9.899e-05,2]
[406722255,1772120735267,-776.38347726,9.899e-05,2]
[406722256,1772120735291,-776.38347726,9.899e-05,2]
[406722257,1772120735317,-776.38347726,9.899e-05,2]
[406722258,1772120735340,-776.38347726,9.899e-05,2]
[406722259,1772120735368,-776.38347726,9.899e-05,2]
[406722260,1772120735402,-776.38347726,9.899e-05,2]
[406722261,1772120735425,-776.38347726,9.899e-05,2]
[406722262,1772120735448,-776.38347726,9.899e-05,2]
[406722263,1772120735471,-776.38347726,9.899e-05,2]
[406722264,1772120735495,-776.38347726,9.899e-05,2]
[406722265,1772120735521,-776.38347726,9.899e-05,2]
[406722266,1772120735545,-776.38347726,9.899e-05,2]
[406722267,1772120735568,-776.38347726,9.899e-05,2]
[406722268,1772120735593,-776.38347726,9.899e-05,2]
[406722269,1772120735836,-776.38347726,9.899e-05,2]
[406722270,1772120735863,-776.38347726,9.899e-05,2]
[406722271,1772120735888,-776.38347726,9.899e-05,2]
[406722272,1772120735912,-776.38347726,9.899e-05,2]
[406722273,1772120735936,-776.38347726,9.899e-05,2]
[406722274,1772120735960,-776.38347726,9.899e-05,2]
[406722275,1772120735984,-776.38347726,9.899e-05,2]
[406722276,1772120736010,-776.38347726,9.899e-05,2]
[406722277,1772120736034,-776.38347726,9.899e-05,2]
[406722278,1772120736059,-776.38347726,9.899e-05,2]
[406722279,1772120736087,-776.38347726,9.899e-05,2]
[406722280,1772120736113,-776.38347726,9.899e-05,2]
[406722281,1772120736137,-776.38347726,9.899e-05,2]
[406722282,1772120736161,-776.38347726,9.899e-05,2]
[406722283,1772120736187,-776.38347726,9.899e-05,2]
[406722284,1772120736212,-776.38347726,9.899e-05,2]
[406722285,1772120736237,-776.38347726,9.899e-05,2]
[406722286,1772120736261,-776.38347726,9.899e-05,2]
[406722287,1772120736287,-776.38347726,9.899e-05,2]
[406722288,1772120736314,-776.38347726,9.899e-05,2]
[406722289,1772120736339,-776.38347726,9.899e-05,2]
[406722290,1772120736363,-776.38347726,9.899e-05,2]
[406722291,1772120736388,-776.38347726,9.899e-05,2]
[406722292,1772120736415,-776.38347726,9.899e-05,2]
[406722293,1772120736445,-500.0,9.899e-05,2]
[406722294,1772120736470,-154.47,9.9e-05,2]
[406722295,1772120736492,-154.47,9.9e-05,2]
[406722296,1772120736514,-154.47,9.9e-05,2]
[406722297,1772120736537,-15161.45706401,9.9e-05,2]
[406722298,1772120952094,-300.0,9.898e-05,2]
[406722299,1772120952117,-9060.84571714,9.899e-05,2]
[406722300,1772120961303,-1590.03057058,9.899e-05,2]
[406722301,1772120966141,-187.76095264,9.898e-05,2]
[406722302,1772120966164,-165.41566706,9.898e-05,2]
[406722303,1772120966188,-39349.12371228,9.899e-05,2]
[406722304,1772120966211,-500.0,9.899e-05,2]
[406722305,1772120966234,-1000.0,9.9e-05,2]
[406722306,1772120966256,-1000.0,9.9e-05,2]
[406722307,1772120966280,-1000.0,9.9e-05,2]
[406722308,1772120966302,-1000.0,9.9e-05,2]
[406722309,1772120966323,-1000.0,9.9e-05,2]
[406722310,1772120966350,-1000.0,9.9e-05,2]
[406722311,1772120966372,-1000.0,9.9e-05,2]
[406722312,1772120966393,-1000.0,9.9e-05,2]
[406722313,1772120966413,-1000.0,9.9e-05,2]
[406722314,1772120966434,-1000.0,9.9e-05,2]
[406722315,1772120966456,-1000.0,9.9e-05,2]
[406722316,1772120966476,-1000.0,9.9e-05,2]
[406722317,1772120966497,-1000.0,9.9e-05,2]
[406722318,1772120966519,-1000.0,9.9e-05,2]
[406722319,1772120966540,-1000.0,9.9e-05,2]
[406722320,1772120966561,-1000.0,9.9e-05,2]
[406722321,1772120966580,-1000.0,9.9e-05,2]
[406722322,1772120966602,-762.5057879,9.9e-05,2]
[406722323,1772120966623,-200.0,9.901e-05,2]
[406722324,1772120966644,-154.47,0.0001,2]
[406722325,1772120966666,-154.47,0.0001,2]
[406722326,1772120966687,-165.49143558,0.0001,2]
[406722327,1772120966710,-154.47,0.000101,2]
[406722328,1772120966732,-154.47,0.000101,2]
[406722329,1772120966755,-154.47,0.000101,2]
[406722330,1772120966776,-500.0,0.00010173,2]
[406722331,1772120966799,-154.47,0.000102,2]
[406722332,1772120966821,-154.47,0.000102,2]
[406722333,1772120966847,-154.47,0.000103,2]
[406722334,1772120966869,-154.47,0.000103,2]
[406722335,1772120966893,-89.5297384,0.000103,2]
[406722336,1772120970648,-500.0,9.898e-05,2]
[406722337,1772120970676,-500.0,9.898e-05,2]
[406722338,1772120970701,-500.0,9.898e-05,2]
[406722339,1772120970729,-500.0,9.898e-05,2]
[406722340,1772120970752,-500.0,9.898e-05,2]
[406722341,1772120970776,-500.0,9.898e-05,2]
[406722342,1772120970804,-500.0,9.898e-05,2]
[406722343,1772120970828,-500.0,9.898e-05,2]
[406722344,1772120970857,-500.0,9.898e-05,2]
[406722345,1772120970884,-500.0,9.898e-05,2]
[406722346,1772120970913,-500.0,9.898e-05,2]
[406722347,1772120970942,-500.0,9.898e-05,2]
[406722348,1772120970966,-500.0,9.898e-05,2]
[406722349,1772120970989,-500.0,9.898e-05,2]
[406722350,1772120971012,-500.0,9.898e-05,2]
[406722351,1772120971036,-234.04071029,9.898e-05,2]
[406722352,1772120971062,-500.0,9.898e-05,2]
[406722353,1772120971086,-500.0,9.898e-05,2]
[406722354,1772120971110,-500.0,9.898e-05,2]
[406722355,1772120971134,-500.0,9.898e-05,2]
[406722356,1772120971162,-508.7151154,9.898e-05,2]
[406722357,1772120971189,-500.0,9.898e-05,2]
[406722358,1772120971212,-500.0,9.898e-05,2]
[406722359,1772120971237,-500.0,9.898e-05,2]
[406722360,1772120971261,-500.0,9.898e-05,2]
[406722361,1772120971283,-500.0,9.898e-05,2]
[406722362,1772120971306,-500.0,9.898e-05,2]
[406722363,1772120971328,-498.20539431,9.898e-05,2]
[406722374,1772121032592,-300.0,9.897e-05,2]
[406722375,1772121032603,-190.57899851,9.897e-05,2]
[406722376,1772121032658,-109.42100149,9.897e-05,2]
[406722378,1772121032668,-1200.0,9.897e-05,2]
[406722379,1772121032678,-300.0,9.897e-05,2]
[406722380,1772121032687,-300.0,9.897e-05,2]
[406722381,1772121032698,-7679.92122851,9.898e-05,2]
[406723279,1772121049899,-574.33981742,9.798e-05,2]
[406723280,1772121049910,-242.54863809,9.847e-05,2]
[406723281,1772121049919,-192.67119003,9.897e-05,2]
[406723282,1772121049929,-500.0,9.897e-05,2]
[406723283,1772121049938,-278.74612393,9.897e-05,2]
[406723284,1772121049947,-500.0,9.897e-05,2]
[406723286,1772121049957,-500.0,9.897e-05,2]
[406723288,1772121049967,-500.0,9.897e-05,2]
[406723290,1772121049976,-500.0,9.897e-05,2]
[406723292,1772121049986,-500.0,9.897e-05,2]
[406723295,1772121049996,-500.0,9.897e-05,2]
[406723297,1772121050006,-500.0,9.897e-05,2]
[406723299,1772121050015,-179.62391221,9.897e-05,2]
[406723301,1772121050025,-500.0,9.897e-05,2]
[406723302,1772121050034,-500.0,9.897e-05,2]
[406723305,1772121050044,-500.0,9.897e-05,2]
[406723306,1772121050053,-500.0,9.897e-05,2]
[406723309,1772121050063,-259.32338077,9.897e-05,2]
[406723310,1772121050073,-500.0,9.897e-05,2]
[406723312,1772121050083,-500.0,9.897e-05,2]
[406723315,1772121050093,-500.0,9.897e-05,2]
[406723317,1772121050102,-500.0,9.897e-05,2]
[406723319,1772121050112,-500.0,9.897e-05,2]
[406723321,1772121050121,-500.0,9.897e-05,2]
[406723323,1772121050130,-500.0,9.897e-05,2]
[406723325,1772121050140,-500.0,9.897e-05,2]
[406723327,1772121050149,-500.0,9.897e-05,2]
[406723329,1772121050158,-500.0,9.897e-05,2]
[406723331,1772121050167,-500.0,9.897e-05,2]
[406723333,1772121050177,-500.0,9.897e-05,2]
[406723335,1772121050186,-500.0,9.897e-05,2]
[406723337,1772121050196,-500.0,9.897e-05,2]
[406723339,1772121050205,-500.0,9.897e-05,2]
[406723341,1772121050214,-500.0,9.897e-05,2]
[406723343,1772121050224,-500.0,9.897e-05,2]
[406723345,1772121050233,-500.0,9.897e-05,2]
[406723346,1772121050242,-319.86450121,9.897e-05,2]
[406723353,1772121050302,-180.13549879,9.897e-05,2]
[406723355,1772121050311,-157.5928101,9.897e-05,2]
[406723364,1772121050378,-342.4071899,9.897e-05,2]
[406723366,1772121050388,-500.0,9.897e-05,2]
[406723368,1772121050397,-181.34239939,9.897e-05,2]
[406723370,1772121050407,-500.0,9.897e-05,2]
[406723372,1772121050416,-500.0,9.897e-05,2]
[406723374,1772121050425,-500.0,9.897e-05,2]
[406723376,1772121050435,-500.0,9.897e-05,2]
[406723378,1772121050444,-500.0,9.897e-05,2]
[406723380,1772121050453,-500.0,9.897e-05,2]
[406723382,1772121050463,-500.0,9.897e-05,2]
[406723384,1772121050472,-500.0,9.897e-05,2]
[406723386,1772121050482,-500.0,9.897e-05,2]
[406723388,1772121050491,-500.0,9.897e-05,2]
[406723390,1772121050500,-500.0,9.897e-05,2]
[406723391,1772121050509,-16698.41832352,9.898e-05,2]
[406723394,1772121050518,-559.0,9.898e-05,2]
[406723395,1772121050528,-151.0,0.0001,2]
[406723397,1772121050537,-151.0,0.0001,2]
[406723400,1772121050546,-151.0,0.0001,2]
[406723401,1772121050555,-151.0,0.0001,2]
[406723403,1772121050565,-151.0,0.0001,2]
[406723405,1772121050574,-151.0,0.0001,2]
[406723407,1772121050585,-151.0,0.0001,2]
[406723409,1772121050594,-151.0,0.0001,2]
[406723411,1772121050603,-151.0,0.0001,2]
[406723413,1772121050612,-151.0,0.0001,2]
[406723415,1772121050622,-151.0,0.0001,2]
[406723417,1772121050632,-151.0,0.0001,2]
[406723419,1772121050641,-151.0,0.0001,2]
[406723422,1772121050651,-151.0,0.0001,2]
[406723424,1772121050660,-163.27583158,0.0001,2]
[406723426,1772121050669,-64.9402616,0.000103,2]
[406723428,1772121050678,-154.47,0.000104,2]
[406723430,1772121050688,-154.47,0.000104,2]
[406723431,1772121050697,-154.47,0.000104,2]
[406723433,1772121050706,-300.0,0.00010607,2]
[406723435,1772121050716,-300.0,0.00010607,2]
[406723438,1772121050725,-300.0,0.00010607,2]
[406723440,1772121050734,-300.0,0.00010607,2]
[406723442,1772121050744,-300.0,0.00010607,2]
[406723444,1772121050754,-300.0,0.00010607,2]
[406723446,1772121050763,-300.0,0.00010607,2]
[406723448,1772121050772,-300.0,0.00010607,2]
[406723450,1772121050781,-300.0,0.00010607,2]
[406723452,1772121050791,-300.0,0.00010607,2]
[406723454,1772121050800,-300.0,0.00010607,2]
[406723456,1772121050810,-300.0,0.00010607,2]
[406723458,1772121050821,-300.0,0.00010607,2]
[406723460,1772121050830,-300.0,0.00010607,2]
[406723462,1772121050839,-300.0,0.00010607,2]
[406723464,1772121050848,-500.0,0.00010607,2]
[406723466,1772121050857,-600.0,0.00010818,2]
[406723468,1772121050872,-500.0,0.00010881,2]
[406723470,1772121050881,-420.0,0.00010887,2]
[406723472,1772121050890,-1680.0,0.00010887,2]
[406723474,1772121050900,-500.0,0.00011155,2]
[406723476,1772121050911,-500.0,0.00011429,2]
[406723478,1772121050920,-1185.119531,0.0001154,2]
[406723480,1772121050930,-500.0,0.00011703,2]
[406723481,1772121050940,-208.82972127,0.000118,2]
[406723483,1772121050950,-286.20739294,0.00011847,2]
[406723485,1772121050960,-157.18,0.000119,5]
[406723487,1772121050969,-720.0,0.000119,2]
[406723489,1772121050979,-9000.0,0.0001193,2]
[406723492,1772121050990,-5052.16850778,0.0001193,2]
[406723494,1772121050999,-1669.9438505,0.00011955,2]
[406723495,1772121051008,-587.0,0.00011975,2]
[406723497,1772121051017,-480.0,0.00011975,2]
[406723500,1772121051026,-500.0,0.00011977,2]
[406723501,1772121051037,-5000.0,0.00012,2]
[406723503,1772121051046,-400.0,0.00012,3]
[406723505,1772121051055,-1185.119531,0.00012026,2]
[406723507,1772121051065,-2284.04500718,0.00012226,2]
[406723509,1772121051074,-584.89768049,0.00012251,2]
[406723511,1772121051083,-1000.0,0.000123,2]
[406723513,1772121051093,-1000.0,0.000123,2]
[406723515,1772121051103,-1000.0,0.000123,2]
[406723518,1772121051113,-1000.0,0.000123,2]
[406723520,1772121051122,-368.98,0.00012329,2]
[406723521,1772121051132,-307.48,0.00012329,2]
[406723523,1772121051141,-256.24,0.00012329,2]
[406723526,1772121051151,-213.53,0.00012329,2]
[406723528,1772121051160,-177.94,0.00012329,2]
[406723530,1772121051170,-889.73,0.00012329,2]
[406723531,1772121051179,-1000.0,0.000124,2]
[406723533,1772121051188,-1000.0,0.000124,2]
[406723535,1772121051197,-500.0,0.00012438,2]
[406723537,1772121051206,-500.0,0.00012438,2]
[406723539,1772121051215,-451.79778373,0.00012438,2]
[406723541,1772121051224,-2701.8510521,0.00012439,2]
[406723543,1772121051234,-1185.119531,0.00012511,2]
[406723545,1772121051243,-1185.119531,0.00012997,2]
[406723547,1772121051252,-864.0,0.0001309,2]
[406723549,1772121051261,-823.0,0.00013173,2]
[406723551,1772121051271,-25467.59253834,0.00013174,2]
[406723553,1772121051280,-250.0,0.00013231,2]
[406723555,1772121051291,-433.58,0.00013268,2]
[406723557,1772121051300,-157.442,0.00013271,2]
[406723559,1772121051309,-500.0,0.00013273,2]
[406723561,1772121051318,-219.32069232,0.00013273,2]
[406723563,1772121051327,-500.0,0.00013273,2]
[406723565,1772121051337,-500.25545249,0.00013273,2]
[406723567,1772121051346,-500.0,0.00013273,2]
[406723569,1772121051356,-500.0,0.00013273,2]
[406723571,1772121051365,-168.57300407,0.00013273,2]
[406723573,1772121051374,-500.0,0.00013273,2]
[406723575,1772121051383,-166.58823823,0.00013273,2]
[406723577,1772121051392,-500.0,0.00013273,2]
[406723578,1772121051401,-500.0,0.00013273,2]
[406723579,1772121051410,-500.0,0.00013273,2]
[406723580,1772121051418,-500.0,0.00013273,2]
[406723581,1772121051428,-500.0,0.00013273,2]
[406723582,1772121051439,-403.26235717,0.00013273,2]
[406723583,1772121051448,-500.0,0.00013273,2]
[406723584,1772121051457,-500.0,0.00013273,2]
[406723585,1772121051466,-500.0,0.00013273,2]
[406723586,1772121051475,-500.0,0.00013273,2]
[406723588,1772121051484,-500.0,0.00013273,2]
[406723589,1772121051493,-500.0,0.00013273,2]
[406723591,1772121051502,-500.0,0.00013273,2]
[406723593,1772121051511,-500.0,0.00013273,2]
[406723595,1772121051521,-500.0,0.00013273,2]
[406723597,1772121051530,-500.0,0.00013273,2]
[406723599,1772121051543,-500.0,0.00013273,2]
[406723601,1772121051552,-500.0,0.00013273,2]
[406723603,1772121051561,-500.0,0.00013273,2]
[406723605,1772121051570,-500.0,0.00013273,2]
[406723607,1772121051580,-212.02589509,0.00013273,2]
[406723609,1772121051589,-500.0,0.00013273,2]
[406723611,1772121051598,-500.0,0.00013273,2]
[406723613,1772121051607,-501.0020781,0.00013273,2]
[406723615,1772121051616,-265.88112738,0.00013273,2]
[406723617,1772121051625,-320.06385893,0.00013273,2]
[406723619,1772121051634,-270.43548934,0.00013273,2]
[406723621,1772121051643,-493.67472211,0.00013273,2]
[406723623,1772121051652,-500.0,0.00013273,2]
[406723625,1772121051662,-500.0,0.00013273,2]
[406723644,1772121051828,-500.0,0.00013273,2]
[406723646,1772121051837,-186.66329369,0.00013273,2]
[406723648,1772121051846,-500.0,0.00013273,2]
[406723650,1772121051855,-263.04243068,0.00013273,2]
[406723652,1772121051865,-500.0,0.00013273,2]
[406723654,1772121051876,-527.49594452,0.00013273,2]
[406723656,1772121051886,-510.22638337,0.00013273,2]
[406723658,1772121051895,-500.0,0.00013273,2]
[406723660,1772121051905,-500.0,0.00013273,2]
[406723662,1772121051915,-500.0,0.00013273,2]
[406723664,1772121051923,-500.0,0.00013273,2]
[406723666,1772121051932,-500.0,0.00013273,2]
[406723668,1772121051942,-151.0,0.00013273,2]
[406723670,1772121051952,-151.0,0.00013273,2]
[406723672,1772121051961,-205.0,0.00013273,2]
[406723674,1772121051970,-1185.119531,0.00013483,2]
[406723676,1772121051979,-4255.0069855,0.00013631,2]
[406723678,1772121051988,-150.0,0.00013673,2]
[406723680,1772121051997,-300.0,0.00013673,2]
[406723682,1772121052006,-500.0,0.00013698,2]
[406723683,1772121052015,-555.33802882,0.00013698,2]
[406723685,1772121052024,-500.0,0.00013698,2]
[406723687,1772121052033,-500.0,0.00013698,2]
[406723689,1772121052044,-500.0,0.00013698,2]
[406723691,1772121052053,-349.17795885,0.00013698,2]
[406723693,1772121052062,-500.0,0.00013698,2]
[406723695,1772121052073,-555.55175497,0.00013698,2]
[406723697,1772121052082,-500.0,0.00013698,2]
[406723699,1772121052095,-500.0,0.00013698,2]
[406723702,1772121052105,-500.0,0.00013698,2]
[406723703,1772121052114,-307.55845053,0.00013698,2]
[406723705,1772121052124,-500.0,0.00013698,2]
[406723708,1772121052133,-466.06359789,0.00013698,2]
[406723710,1772121052143,-500.0,0.00013698,2]
[406723711,1772121052152,-500.0,0.00013698,2]
[406723713,1772121052161,-500.0,0.00013698,2]
[406723715,1772121052170,-325.72621694,0.00013698,2]
[406723717,1772121052179,-500.0,0.00013698,2]
[406723719,1772121052189,-552.21756849,0.00013698,2]
[406723721,1772121052198,-500.0,0.00013698,2]
[406723723,1772121052208,-500.0,0.00013698,2]
[406723725,1772121052217,-500.0,0.00013698,2]
[406723727,1772121052234,-500.0,0.00013698,2]
[406723730,1772121052244,-500.0,0.00013698,2]
[406723732,1772121052254,-500.0,0.00013698,2]
[406723733,1772121052264,-500.0,0.00013698,2]
[406723735,1772121052274,-500.0,0.00013698,2]
[406723737,1772121052283,-500.0,0.00013698,2]
[406723740,1772121052294,-593.47596775,0.00013698,2]
[406723741,1772121052303,-500.0,0.00013698,2]
[406723743,1772121052312,-505.32011301,0.00013698,2]
[406723745,1772121052322,-501.90577709,0.00013698,2]
[406723747,1772121052331,-500.0,0.00013698,2]
[406723749,1772121052340,-500.0,0.00013698,2]
[406723751,1772121052350,-500.0,0.00013698,2]
[406723753,1772121052359,-500.0,0.00013698,2]
[406723755,1772121052368,-500.0,0.00013698,2]
[406723757,1772121052377,-360.00532856,0.00013698,2]
[406723759,1772121052387,-500.0,0.00013698,2]
[406723761,1772121052395,-500.0,0.00013698,2]
[406723763,1772121052404,-500.0,0.00013698,2]
[406723765,1772121052414,-500.0,0.00013698,2]
[406723767,1772121052423,-500.0,0.00013698,2]
[406723769,1772121052432,-150.0,0.00013698,2]
[406723771,1772121052443,-542.3290321,0.00013699,2]
[406723773,1772121052452,-160.91314934,0.00013699,2]
[406723775,1772121052462,-500.0,0.00013699,2]
[406723777,1772121052471,-500.0,0.00013699,2]
[406723779,1772121052480,-160.84815187,0.00013699,2]
[406723781,1772121052489,-500.0,0.00013699,2]
[406723783,1772121052498,-221.7836958,0.00013699,2]
[406723785,1772121052507,-500.0,0.00013699,2]
[406723787,1772121052516,-621.94832915,0.00013699,2]
[406723789,1772121052525,-500.0,0.00013699,2]
[406723791,1772121052534,-500.0,0.00013699,2]
[406723793,1772121052544,-500.0,0.00013699,2]
[406723795,1772121052553,-287.87743582,0.00013699,2]
[406723797,1772121052563,-500.0,0.00013699,2]
[406723799,1772121052572,-159.44747247,0.00013699,2]
[406723801,1772121052581,-241.8828051,0.00013699,2]
[406723803,1772121052589,-500.0,0.00013699,2]
[406723805,1772121052599,-306.1801475,0.00013699,2]
[406723807,1772121052608,-299.75902457,0.00013699,2]
[406723809,1772121052617,-500.0,0.00013699,2]
[406723811,1772121052627,-500.0,0.00013699,2]
[406723813,1772121052636,-500.0,0.00013699,2]
[406723815,1772121052645,-500.0,0.00013699,2]
[406723817,1772121052655,-500.0,0.00013699,2]
[406723819,1772121052664,-158.21933482,0.00013699,2]
[406723821,1772121052673,-500.0,0.00013699,2]
[406723823,1772121052682,-500.0,0.00013699,2]
[406723825,1772121052691,-500.0,0.00013699,2]
[406723827,1772121052701,-500.0,0.00013699,2]
[406723829,1772121052710,-500.0,0.00013699,2]
[406723831,1772121052719,-500.0,0.00013699,2]
[406723833,1772121052729,-500.0,0.00013699,2]
[406723835,1772121052738,-500.0,0.00013699,2]
[406723837,1772121052747,-250.16286953,0.00013699,2]
[406723839,1772121052756,-500.0,0.00013699,2]
[406723840,1772121052766,-500.0,0.00013699,2]
[406723842,1772121052775,-471.72988038,0.00013699,2]
[406723845,1772121052784,-500.0,0.00013699,2]
[406723847,1772121052795,-500.0,0.00013699,2]
[406723849,1772121052804,-500.0,0.00013699,2]
[406723851,1772121052814,-500.0,0.00013699,2]
[406723852,1772121052823,-500.0,0.00013699,2]
[406723853,1772121052832,-500.0,0.00013699,2]
[406723854,1772121052841,-303.54477999,0.00013699,2]
[406723855,1772121052850,-500.0,0.00013699,2]
[406723856,1772121052860,-500.0,0.00013699,2]
[406723857,1772121052873,-500.0,0.00013699,2]
[406723858,1772121052882,-500.0,0.00013699,2]
[406723859,1772121052891,-500.0,0.00013699,2]
[406723860,1772121052900,-326.16698407,0.00013699,2]
[406723862,1772121052911,-564.64954297,0.00013699,2]
[406723864,1772121052920,-500.0,0.00013699,2]
[406723866,1772121052929,-500.0,0.00013699,2]
[406723868,1772121052939,-500.0,0.00013699,2]
[406723870,1772121052948,-500.0,0.00013699,2]
[406723872,1772121052957,-500.0,0.00013699,2]
[406723874,1772121052966,-261.23972838,0.00013699,2]
[406723876,1772121052975,-500.0,0.00013699,2]
[406723878,1772121052984,-500.0,0.00013699,2]
[406723879,1772121052993,-500.0,0.00013699,2]
[406723881,1772121053003,-500.0,0.00013699,2]
[406723883,1772121053012,-500.0,0.00013699,2]
[406723886,1772121053022,-500.0,0.00013699,2]
[406723888,1772121053033,-500.0,0.00013699,2]
[406723890,1772121053043,-428.18877308,0.00013699,2]
[406723892,1772121053052,-500.0,0.00013699,2]
[406723894,1772121053061,-500.0,0.00013699,2]
[406723896,1772121053070,-500.0,0.00013699,2]
[406723898,1772121053079,-500.0,0.00013699,2]
[406723900,1772121053089,-500.0,0.00013699,2]
[406723901,1772121053098,-500.0,0.00013699,2]
[406723903,1772121053107,-500.0,0.00013699,2]
[406723905,1772121053117,-160.58294383,0.00013699,2]
[406723907,1772121053126,-500.0,0.00013699,2]
[406723909,1772121053135,-500.0,0.00013699,2]
[406723911,1772121053145,-502.22607729,0.00013699,2]
[406723913,1772121053154,-500.0,0.00013699,2]
[406723915,1772121053163,-159.26501413,0.00013699,2]
[406723917,1772121053173,-527.43956154,0.00013699,2]
[406723919,1772121053182,-151.0,0.00013699,2]
[406723921,1772121053191,-151.0,0.00013699,2]
[406723923,1772121053200,-150.0,0.000137,2]
[406723925,1772121053210,-236.48896251,0.00013721,2]
[406723927,1772121053219,-691.99761029,0.00013821,2]
[406723929,1772121053228,-1094.31034457,0.00013821,2]
[406723931,1772121053237,-1000.0,0.00013821,2]
[406723933,1772121053246,-1000.0,0.00013821,2]
[406723935,1772121053256,-1000.0,0.00013821,2]
[406723937,1772121053265,-1000.0,0.00013821,2]
[406723939,1772121053275,-1000.0,0.00013821,2]
[406723941,1772121053284,-500.0,0.00013821,2]
[406723943,1772121053294,-1000.0,0.00013821,2]
[406723945,1772121053303,-1000.0,0.00013821,2]
[406723947,1772121053313,-1000.0,0.00013821,2]
[406723950,1772121053329,-1000.0,0.00013821,2]
[406723952,1772121053344,-1000.0,0.00013821,2]
[406723954,1772121053354,-1000.0,0.00013821,2]
[406723956,1772121053363,-1000.0,0.00013821,2]
[406723958,1772121053373,-1000.0,0.00013821,2]
[406723960,1772121053383,-1000.0,0.00013821,2]
[406723963,1772121053393,-1000.0,0.00013821,2]
[406723965,1772121053403,-1000.0,0.00013821,2]
[406723967,1772121053412,-1000.0,0.00013821,2]
[406723969,1772121053422,-1000.0,0.00013821,2]
[406723971,1772121053432,-1000.0,0.00013821,2]
[406723973,1772121053442,-1000.0,0.00013821,2]
[406723975,1772121053452,-1000.0,0.00013821,2]
[406723977,1772121053462,-1000.0,0.00013821,2]
[406723979,1772121053471,-1000.0,0.00013821,2]
[406723981,1772121053481,-1000.0,0.00013821,2]
[406723983,1772121053490,-407.85449753,0.00013821,2]
[406723985,1772121053500,-1000.0,0.00013821,2]
[406723987,1772121053510,-500.8611404,0.00013821,2]